bitfinex/quotes_SOLUSD_20250527
["timestamp","ask_amount","ask_price","bid_price","bid_amount"]
[1748381868605,7.09325097,176.46,176.42,27.5907]
[1748381868806,7.09325097,176.46,176.45,35.12]
[1748381869930,12.76050247,176.46,176.45,35.12]
[1748381871137,12.76050247,176.46,176.44,13.33200531]
[1748381871344,12.76050247,176.46,176.45,35.12]
[1748381872615,7.09325097,176.45,176.44,4.09200531]
[1748381872816,7.09325097,176.45,176.44,39.21200531]
[1748381873931,12.76057882,176.45,176.44,39.21200531]
[1748381874132,20.97687882,176.45,176.44,4.09200531]
[1748381874344,20.97687882,176.45,176.41,0.16]
[1748381874345,58.0316614,176.42,176.41,0.16]
[1748381874533,66.69032205,176.42,176.41,0.16]
[1748381874853,83.41441046,176.42,176.41,0.16]
[1748381875019,86.22442391,176.42,176.41,0.16]
[1748381875215,82.65442412,176.42,176.41,0.16]
[1748381875826,62.32271569,176.42,176.41,0.16]
[1748381876024,75.88565069,176.42,176.41,0.16]
[1748381876231,7.09325097,176.3,176.25,35.68]
[1748381876429,0.14216157,176.41,176.26,6.6118]
[1748381876430,7.09325097,176.34,176.26,6.6118]
[1748381876748,7.09325097,176.35,176.29,26.0]
[1748381876946,54.71169184,176.42,176.31,1.5841]
[1748381876947,7.09325097,176.34,176.31,1.5841]
[1748381877250,7.09325097,176.36,176.31,1.5841]
[1748381877421,7.09325097,176.38,176.31,0.5841]
[1748381877621,7.09325097,176.37,176.31,0.5841]
[1748381877856,7.09325097,176.39,176.33,26.0]
[1748381878055,12.7618703,176.41,176.34,5.6708631]
[1748381878221,12.7618703,176.41,176.35,35.7]
[1748381878570,14.16875425,176.45,176.35,35.7]
[1748381878571,12.76157968,176.42,176.36,9.26]
[1748381879341,12.76157968,176.42,176.36,14.93018787]
[1748381879845,0.5,176.41,176.36,14.93018787]
[1748381880546,7.09325097,176.37,176.36,9.26]
[1748381881319,7.09325097,176.36,176.31,0.5841]
[1748381881522,7.09325097,176.36,176.32,44.94]
[1748381882017,5.67008697,176.37,176.32,44.94]
[1748381882232,7.09325097,176.36,176.32,44.94]
[1748381884145,7.09325097,176.37,176.33,26.0]
[1748381884944,7.09325097,176.37,176.34,35.64]
[1748381885932,7.09325097,176.38,176.34,35.64]
[1748381886752,5.66935974,176.39,176.34,35.64]
[1748381886952,12.7622698,176.4,176.34,41.31080303]
[1748381887452,7.09325097,176.38,176.34,41.31080303]
[1748381888852,0.5,176.41,176.35,18.64964886]
[1748381889067,0.42,176.42,176.35,18.64964886]
[1748381889621,0.42,176.42,176.35,107.64964886]
[1748381890532,6.08843233,176.42,176.35,107.64964886]
[1748381890831,13.1816833,176.42,176.35,107.64964886]
[1748381891136,6.08843233,176.42,176.36,5.67022]
[1748381891346,7.09325097,176.39,176.36,5.67022]
[1748381891547,13.1816833,176.42,176.36,5.67022]
[1748381892240,7.09325097,176.39,176.37,44.82]
[1748381892549,0.5,176.41,176.37,133.82]
[1748381893129,6.08829875,176.42,176.37,133.82]
[1748381893330,7.09325097,176.41,176.37,133.82]
[1748381893585,7.09325097,176.38,176.34,9.26]
[1748381893853,7.09325097,176.37,176.35,35.58]
[1748381894041,7.09325097,176.36,176.34,9.26]
[1748381894241,20.25902769,176.42,176.34,44.84]
[1748381894242,12.7637925,176.35,176.34,44.84]
[1748381896232,7.09325097,176.32,176.27,18.64964886]
[1748381896555,5.67054153,176.35,176.26,89.0]
[1748381896556,7.09325097,176.28,176.26,9.26]
[1748381896858,7.09325097,176.28,176.27,35.64]
[1748381897877,12.76604425,176.28,176.27,35.64]
[1748381898867,12.76604425,176.28,176.24,9.52]
[1748381899177,12.76578969,176.29,176.24,9.52]
[1748381899339,12.76578969,176.29,176.25,35.6]
[1748381899540,5.67253872,176.29,176.25,35.6]
[1748381899740,12.76578969,176.29,176.25,35.6]
[1748381902938,10.42,176.42,176.26,7.6001]
[1748381902939,7.09325097,176.34,176.26,7.6001]
[1748381903152,7.09325097,176.35,176.29,26.0]
[1748381903350,34.79881934,176.42,176.29,26.0]
[1748381903351,5.67031545,176.36,176.3,45.08]
[1748381903741,7.09325097,176.37,176.3,45.08]
[1748381903940,0.5,176.35,176.33,26.0]
[1748381904244,12.76220831,176.4,176.33,31.67105891]
[1748381905069,5.66895734,176.4,176.34,7.6475]
[1748381905372,5.66861289,176.41,176.35,35.56]
[1748381905553,5.66861289,176.41,176.36,9.52]
[1748381905755,12.76186386,176.41,176.36,9.52]
[1748381906557,5.66861289,176.41,176.36,9.52]
[1748381906754,7.09325097,176.4,176.36,9.52]
[1748381907959,12.76246065,176.4,176.36,9.52]
[1748381908859,0.5,176.39,176.36,9.52]
[1748381909174,6.16937046,176.39,176.36,9.52]
[1748381909476,6.16937046,176.39,176.36,98.52]
[1748381911478,7.09325097,176.36,176.29,9.52]
[1748381911654,7.09325097,176.36,176.31,35.54]
[1748381912151,7.09325097,176.36,176.3,26.0]
[1748381912347,7.09325097,176.36,176.31,35.54]
[1748381912548,7.09325097,176.36,176.32,35.54]
[1748381913677,5.67054153,176.35,176.32,35.54]
[1748381914462,26.94014634,176.35,176.3,26.0]
[1748381914650,26.94014634,176.35,176.31,35.52]
[1748381916177,19.84689537,176.35,176.31,35.52]
[1748381916357,19.84689537,176.35,176.3,26.0]
[1748381916562,26.94014634,176.35,176.31,35.52]
[1748381917463,7.09325097,176.19,176.13,1.5806]
[1748381917975,14.5311916,176.23,176.15,26.0]
[1748381918282,7.09325097,176.19,176.15,26.0]
[1748381918456,7.09325097,176.19,176.13,1.5806]
[1748381918657,0.14216157,176.28,176.13,1.5806]
[1748381918658,7.09325097,176.21,176.13,1.5806]
[1748381918978,7.09325097,176.19,176.14,71.36]
[1748381919984,7.09325097,176.19,176.14,45.36]
[1748381920187,7.09325097,176.19,176.13,1.5806]
[1748381920386,7.09325097,176.19,176.15,9.52]
[1748381920567,7.09325097,176.17,176.15,9.52]
[1748381921089,7.09325097,176.19,176.15,9.52]
[1748381921573,7.09325097,176.19,176.14,9.52]
[1748381921574,5.67664806,176.17,176.14,9.52]
[1748381921754,12.76989903,176.17,176.14,9.52]
[1748381921949,7.09325097,176.17,176.14,9.52]
[1748381922385,12.76963696,176.17,176.14,9.52]
[1748381922562,5.67638599,176.17,176.14,9.52]
[1748381922957,5.67638599,176.17,176.13,26.0]
[1748381922958,5.67638599,176.17,176.15,9.52]
[1748381923155,3.5612,176.16,176.05,4.67574753]
[1748381923354,3.5612,176.16,175.91,9.52]
[1748381923355,5.68149536,176.01,175.91,9.52]
[1748381923554,7.09325097,176.06,175.94,42.7454]
[1748381923754,7.09325097,176.1,176.01,36.46]
[1748381923950,5.67794685,176.12,176.02,18.64964886]
[1748381924477,7.09325097,176.11,176.02,18.64964886]
[1748381924677,7.09325097,176.11,176.03,46.42]
[1748381924878,7.09325097,176.1,176.03,46.42]
[1748381925082,7.09325097,176.11,176.03,46.42]
[1748381925288,7.09325097,176.1,176.04,46.44]
[1748381925489,7.09325097,176.11,176.05,46.42]
[1748381925862,7.09325097,176.13,176.05,46.42]
[1748381926268,7.09325097,176.11,176.05,46.42]
[1748381926478,5.67778544,176.13,176.05,46.42]
[1748381926479,0.5,176.12,176.05,46.42]
[1748381926789,7.09325097,176.11,176.05,46.42]
[1748381927164,7.09325097,176.1,176.05,46.42]
[1748381928064,7.09325097,176.14,176.05,46.42]
[1748381928262,5.67741435,176.14,176.05,46.42]
[1748381928464,7.09325097,176.1,176.05,46.42]
[1748381928875,12.77066532,176.14,176.05,46.42]
[1748381929063,7.09325097,176.1,176.05,46.42]
[1748381929266,7.09325097,176.09,176.05,46.42]
[1748381930379,7.09325097,176.1,176.05,46.42]
[1748381930575,7.09325097,176.09,176.06,46.4]
[1748381930793,7.09325097,176.11,176.06,46.4]
[1748381930996,7.09325097,176.1,176.06,46.4]
[1748381931494,7.09325097,176.1,176.03,31.68057702]
[1748381931683,7.09325097,176.1,176.04,46.38]
[1748381931997,7.09325097,176.09,176.05,46.38]
[1748381932779,0.5,176.12,176.05,46.38]
[1748381932966,7.09325097,176.09,176.05,46.38]
[1748381933368,7.09325097,176.09,176.06,5.67988185]
[1748381934289,7.09325097,176.1,176.05,5.68020439]
[1748381934491,7.09325097,176.09,176.06,9.96]
[1748381934693,7.09325097,176.09,176.07,9.96]
[1748381935791,7.09325097,176.11,176.07,15.63935773]
[1748381935989,7.09325097,176.1,176.07,15.63935773]
[1748381936492,7.59325097,176.1,176.07,15.63935773]
[1748381936793,7.59325097,176.1,176.07,9.96]
[1748381937091,7.09325097,176.09,176.08,9.96]
[1748381938209,0.5,176.1,176.08,15.63923671]
[1748381938705,7.09325097,176.08,176.04,35.96]
[1748381939884,7.09325097,176.1,176.04,35.96]
[1748381940082,7.09325097,176.14,176.04,35.96]
[1748381940404,7.09325097,176.14,176.05,5.68020448]
[1748381940604,12.77055333,176.14,176.05,5.68020448]
[1748381940913,7.09325097,176.1,176.05,5.68020448]
[1748381941086,7.09325097,176.09,176.06,9.96]
[1748381941680,7.09325097,176.12,176.06,15.63978343]
[1748381941884,5.67790649,176.13,176.06,15.63978343]
[1748381941885,7.09325097,176.09,176.07,36.5]
[1748381942191,7.09325097,176.12,176.07,36.5]
[1748381942584,7.09325097,176.11,176.07,36.5]
[1748381942789,0.5,176.13,176.07,36.5]
[1748381943000,7.09325097,176.12,176.07,36.5]
[1748381943185,0.5,176.13,176.07,36.5]
[1748381943389,7.09325097,176.12,176.07,36.5]
[1748381943613,7.59325097,176.13,176.07,125.5]
[1748381943814,0.5,176.13,176.08,5.67923671]
[1748381944107,0.5,176.13,176.09,26.0]
[1748381944290,7.59325097,176.13,176.09,26.0]
[1748381945312,0.5,176.13,176.09,26.0]
[1748381946138,0.5,176.13,176.09,31.67874012]
[1748381947897,7.59325097,176.13,176.09,31.67874012]
[1748381948207,0.5,176.13,176.09,31.67874012]
[1748381951490,7.59325097,176.13,176.09,26.0]
[1748381951697,7.59325097,176.13,176.1,36.34]
[1748381952397,0.5,176.13,176.1,36.34]
[1748381952712,0.5,176.13,176.12,26.0]
[1748381952900,0.5,176.13,176.12,35.96]
[1748381954311,6.17762448,176.13,176.12,26.0]
[1748381954498,0.5,176.13,176.12,35.92]
[1748381955390,6.17762448,176.13,176.12,9.92]
[1748381955706,0.5,176.13,176.12,9.92]
[1748381956310,6.17762448,176.13,176.12,9.92]
[1748381956705,13.27087545,176.13,176.09,90.5652]
[1748381956908,7.09325097,176.11,176.1,9.92]
[1748381957324,7.09325097,176.11,176.1,98.92]
[1748381958308,12.77152023,176.11,176.1,98.92]
[1748381958702,7.09325097,176.11,176.1,98.92]
[1748381959216,7.09325097,176.09,176.08,9.92]
[1748381959623,7.09325097,176.1,176.08,9.92]
[1748381959828,7.09325097,176.09,176.08,9.92]
[1748381960130,7.09325097,176.1,176.08,9.92]
[1748381960321,12.77194832,176.1,176.08,9.92]
[1748381960537,7.09325097,176.09,176.07,36.42]
[1748381960719,7.09325097,176.09,176.08,9.92]
[1748381961315,12.77216516,176.09,176.08,9.92]
[1748381961517,5.67891419,176.09,176.08,9.92]
[1748381961829,12.77216516,176.09,176.08,9.92]
[1748381962032,7.09325097,176.09,176.08,9.92]
[1748381963833,7.09325097,176.12,176.08,9.92]
[1748381964031,7.09325097,176.11,176.08,9.92]
[1748381964234,7.09325097,176.07,176.04,35.92]
[1748381964541,7.09325097,176.06,176.04,9.92]
[1748381965636,7.09325097,176.08,176.04,9.92]
[1748381966018,12.77271996,176.08,176.04,9.92]
[1748381966213,7.09325097,176.08,176.04,9.92]
[1748381967924,5.67896707,176.09,176.04,9.92]
[1748381968127,5.67896707,176.09,176.05,26.0]
[1748381968743,12.77221804,176.09,176.05,26.0]
[1748381969131,7.09325097,176.1,176.05,261.7]
[1748381969325,7.09325097,176.11,176.05,261.7]
[1748381969918,0.5,176.1,176.05,261.7]
[1748381970511,0.5,176.1,176.05,267.3799524]
[1748381970937,7.59325097,176.1,176.05,267.3799524]
[1748381971938,7.59325097,176.1,176.05,349.0999524]
[1748381972435,7.59325097,176.1,176.06,36.48]
[1748381972832,13.2719182,176.1,176.06,89.0]
[1748381973145,13.2719182,176.1,176.07,36.5]
[1748381974716,13.2719182,176.1,176.06,89.0]
[1748381974912,13.2719182,176.1,176.07,36.46]
[1748381976650,13.2719182,176.1,176.09,26.0]
[1748381976651,0.5,176.1,176.09,26.0]
[1748381976831,7.09325097,176.12,176.09,115.0]
[1748381977027,7.09325097,176.12,176.1,9.92]
[1748381977419,7.09325097,176.15,176.11,27.6346]
[1748381977931,7.09325097,176.15,176.11,263.3346]
[1748381978540,7.09325097,176.15,176.11,269.01284388]
[1748381978852,7.09325097,176.15,176.11,263.3346]
[1748381979145,7.09325097,176.15,176.11,269.01282375]
[1748381979519,7.09325097,176.15,176.12,36.4]
[1748381980452,7.09325097,176.16,176.12,36.4]
[1748381980618,0.5,176.14,176.12,36.4]
[1748381980814,7.09325097,176.16,176.12,36.4]
[1748381981238,7.09325097,176.16,176.12,272.1]
[1748381982444,7.09325097,176.18,176.15,26.0]
[1748381983332,7.09325097,176.18,176.15,31.67696527]
[1748381983531,7.09325097,176.19,176.15,26.0]
[1748381983847,7.7367,176.27,176.17,26.0]
[1748381983848,7.09325097,176.22,176.17,26.0]
[1748381984148,7.09325097,176.22,176.18,36.32]
[1748381984339,7.09325097,176.22,176.17,26.0]
[1748381984544,7.09325097,176.2,176.16,31.67654247]
[1748381984740,5.67484977,176.22,176.16,31.67654247]
[1748381984741,12.76810074,176.22,176.16,31.67654247]
[1748381984943,12.76775114,176.23,176.16,31.67654247]
[1748381985242,7.09325097,176.22,176.16,31.67654247]
[1748381985446,7.09325097,176.19,176.11,6.36055541]
[1748381985624,7.09325097,176.16,176.12,46.26]
[1748381985825,7.09325097,176.16,176.13,26.0]
[1748381986036,7.09325097,176.16,176.14,46.26]
[1748381986351,7.09325097,176.16,176.13,26.0]
[1748381986526,5.67697984,176.15,176.13,26.0]
[1748381987221,12.77023081,176.15,176.14,46.24]
[1748381987432,12.77023081,176.15,176.14,9.94]
[1748381988619,5.6785917,176.1,176.08,81.68]
[1748381988832,5.6785917,176.1,176.09,46.22]
[1748381989037,12.77162203,176.11,176.09,46.22]
[1748381990232,5.67837106,176.11,176.09,46.22]
[1748381990433,12.77162203,176.11,176.09,46.22]
[1748381991348,7.09325097,176.11,176.09,46.22]
[1748381991739,7.09325097,176.11,176.08,107.68]
[1748381991955,7.09325097,176.11,176.09,46.18]
[1748381992345,12.77176064,176.11,176.08,107.68]
[1748381992557,12.77176064,176.11,176.1,9.94]
[1748381994238,12.77176064,176.11,176.09,36.24]
[1748381994239,12.77176064,176.11,176.08,107.68]
[1748381994440,12.77176064,176.11,176.1,46.14]
[1748381995749,12.77176064,176.11,176.1,46.12]
[1748381995946,5.67850967,176.11,176.1,46.12]
[1748381996174,12.77121483,176.12,176.1,46.12]
[1748381996667,7.09325097,176.11,176.08,107.68]
[1748381996856,7.09325097,176.11,176.09,46.1]
[1748381998071,7.09325097,176.1,176.08,81.68]
[1748381998256,7.09325097,176.1,176.09,46.08]
[1748381998662,12.77161658,176.11,176.09,46.08]
[1748381998868,7.09325097,176.1,176.09,46.08]
[1748382000166,7.09325097,176.11,176.09,46.08]
[1748382000369,7.09325097,176.15,176.12,26.0]
[1748382000582,7.09325097,176.15,176.12,115.0]
[1748382000745,7.09325097,176.15,176.13,36.14]
[1748382001074,7.09325097,176.15,176.14,46.08]
[1748382001940,5.67686779,176.16,176.14,46.08]
[1748382001941,7.09325097,176.16,176.14,46.08]
[1748382002350,7.09325097,176.15,176.14,46.08]
[1748382002559,15.72670396,176.17,176.14,46.08]
[1748382003254,26.0,176.26,176.14,287.45725207]
[1748382003255,7.09325097,176.18,176.14,287.45725207]
[1748382003461,7.09325097,176.19,176.14,287.45725207]
[1748382003856,7.09325097,176.21,176.17,26.0]
[1748382004058,7.09325097,176.2,176.17,26.0]
[1748382004252,12.76799454,176.22,176.17,31.67630922]
[1748382004458,7.09325097,176.22,176.17,31.67630922]
[1748382004654,7.09325097,176.23,176.17,120.67630922]
[1748382004865,7.09325097,176.23,176.18,18.64964886]
[1748382005063,7.09325097,176.23,176.19,36.18]
[1748382005259,7.09325097,176.23,176.2,9.94]
[1748382005671,12.76712174,176.25,176.2,35.94]
[1748382005989,12.76675809,176.26,176.2,124.94]
[1748382007674,7.09325097,176.25,176.2,124.94]
[1748382008193,7.09325097,176.23,176.2,124.94]
[1748382008705,12.76675809,176.26,176.2,124.94]
[1748382008891,14.18078008,176.3,176.2,124.94]
[1748382008892,7.09325097,176.23,176.2,124.94]
[1748382009262,12.76717283,176.25,176.2,124.94]
[1748382010009,7.09325097,176.24,176.2,124.94]
[1748382010174,5.67392186,176.25,176.2,124.94]
[1748382010787,7.09325097,176.24,176.2,124.94]
[1748382011396,12.76734319,176.24,176.2,271.64]
[1748382011594,12.76734319,176.24,176.15,1.5141]
[1748382011772,7.09325097,176.18,176.14,135.02]
[1748382011972,7.09325097,176.17,176.14,72.02]
[1748382012697,7.09325097,176.17,176.15,36.08]
[1748382012879,5.67665758,176.16,176.15,36.08]
[1748382014106,12.76958632,176.17,176.15,36.08]
[1748382014394,12.76958632,176.17,176.15,36.06]
[1748382015170,5.67633535,176.17,176.14,35.94]
[1748382015370,7.09325097,176.15,176.14,45.98]
[1748382015778,7.09325097,176.15,176.14,9.94]
[1748382015983,7.09325097,176.15,176.14,45.98]
[1748382016290,12.77023081,176.15,176.14,45.98]
[1748382016901,7.09325097,176.13,176.11,1.6188]
[1748382017188,7.09325097,176.13,176.1,32.063]
[1748382017189,7.09325097,176.13,176.12,45.8]
[1748382017597,7.09325097,176.13,176.12,9.78]
[1748382017979,7.09325097,176.13,176.12,45.78]
[1748382018295,12.77087545,176.13,176.12,45.78]
[1748382019793,12.77087545,176.13,176.12,9.78]
[1748382019993,12.77087545,176.13,176.12,45.76]
[1748382020298,5.67762448,176.13,176.12,45.76]
[1748382020475,12.77087545,176.13,176.12,45.76]
[1748382020870,12.77087545,176.13,176.12,9.78]
[1748382021098,12.77087545,176.13,176.12,45.74]
[1748382022194,7.09325097,176.13,176.12,45.74]
[1748382022684,7.09325097,176.13,176.12,134.74]
[1748382022884,12.77087545,176.13,176.12,134.74]
[1748382023592,12.77087545,176.13,176.12,134.72]
[1748382023790,12.77087545,176.13,176.12,89.0]
[1748382023976,12.77087545,176.13,176.12,134.7]
[1748382025578,5.67762448,176.13,176.12,134.7]
[1748382026311,12.77087545,176.13,176.12,134.7]
[1748382027499,5.67762448,176.13,176.12,134.7]
[1748382027704,12.77087545,176.13,176.12,134.7]
[1748382028200,7.09325097,176.13,176.12,134.7]
[1748382030401,7.09325097,176.13,176.12,134.62]
[1748382031206,12.77066885,176.14,176.12,134.62]
[1748382031602,7.09325097,176.13,176.12,134.62]
[1748382031906,7.09325097,176.13,176.12,89.0]
[1748382032077,7.09325097,176.13,176.12,134.6]
[1748382032905,7.09325097,176.13,176.12,89.0]
[1748382033104,7.09325097,176.13,176.12,134.58]
[1748382034205,7.09325097,176.13,176.12,89.0]
[1748382034511,7.09325097,176.13,176.12,134.56]
[1748382035906,12.77087545,176.13,176.12,134.56]
[1748382036583,7.09325097,176.13,176.12,134.56]
[1748382038701,7.09325097,176.13,176.12,45.56]
[1748382038891,7.09325097,176.13,176.12,134.56]
[1748382044305,12.77087545,176.13,176.12,134.56]
[1748382047496,7.09325097,176.13,176.12,134.56]
[1748382047729,12.77045008,176.15,176.12,134.56]
[1748382048999,7.09325097,176.14,176.12,134.56]
[1748382049207,7.09325097,176.14,176.12,45.56]
[1748382050299,12.77045008,176.15,176.12,45.56]
[1748382050508,7.09325097,176.14,176.12,45.56]
[1748382050724,12.77059369,176.14,176.12,45.56]
[1748382050908,5.67734272,176.14,176.12,45.56]
[1748382052020,12.77059369,176.14,176.12,45.56]
[1748382052600,7.09325097,176.13,176.12,45.56]
[1748382053523,12.77059369,176.14,176.12,45.56]
[1748382053912,7.09325097,176.13,176.12,45.56]
[1748382055130,7.09325097,176.13,176.12,134.56]
[1748382055833,12.77035172,176.15,176.12,134.56]
[1748382056434,7.09325097,176.14,176.12,134.56]
[1748382057628,7.09325097,176.13,176.12,134.56]
[1748382058529,5.67731031,176.14,176.12,134.56]
[1748382058833,7.09325097,176.13,176.12,134.56]
[1748382069528,5.67731031,176.14,176.12,134.56]
[1748382070041,7.09325097,176.13,176.12,134.56]
[1748382071262,12.77056128,176.14,176.12,134.56]
[1748382071429,7.09325097,176.13,176.12,134.56]
[1748382072338,12.77056128,176.14,176.12,134.56]
[1748382072544,12.77056128,176.14,176.13,9.52]
[1748382072947,7.09325097,176.14,176.13,9.52]
[1748382074059,12.77055311,176.14,176.13,9.52]
[1748382074445,12.77055311,176.14,176.12,124.78]
[1748382074446,7.09325097,176.13,176.12,89.0]
[1748382074651,7.09325097,176.08,176.07,83.319]
[1748382074956,5.67730214,176.14,176.03,1.6162]
[1748382074957,7.09325097,176.07,176.03,1.6162]
[1748382075148,7.09325097,176.05,176.04,44.82]
[1748382075832,12.77345545,176.05,176.04,44.82]
[1748382076152,7.09325097,176.01,176.0,113.4]
[1748382076349,7.09325097,176.01,176.0,148.84]
[1748382077344,7.09325097,176.02,176.0,113.4]
[1748382077553,7.09325097,176.01,176.0,148.84]
[1748382078837,7.09325097,176.01,176.0,113.4]
[1748382079041,12.77474633,176.01,176.0,113.4]
[1748382079263,12.77474633,176.01,176.0,104.0]
[1748382082063,7.09325097,176.01,176.0,104.0]
[1748382082388,3.91958387,176.01,176.0,149.18]
[1748382085276,3.91958387,176.02,176.0,149.18]
[1748382085479,3.91958387,176.01,176.0,149.18]
[1748382085664,3.91958387,176.04,176.0,149.18]
[1748382085872,3.91958387,176.05,176.0,149.18]
[1748382086367,3.91958387,176.05,176.0,154.8617584]
[1748382086583,9.59949848,176.06,176.0,149.18]
[1748382086883,3.91958387,176.05,176.0,149.18]
[1748382087084,3.91958387,176.01,176.0,149.18]
[1748382087881,14.19688043,176.1,176.0,149.18]
[1748382087882,3.91958387,176.02,176.0,149.18]
[1748382088261,3.91958387,176.05,176.0,154.86157875]
[1748382089167,9.59952264,176.06,176.0,154.86157875]
[1748382089367,3.91958387,176.05,176.0,154.86157875]
[1748382091689,9.59952264,176.06,176.0,154.86157875]
[1748382091881,3.91958387,176.05,176.0,154.86157875]
[1748382092565,3.91958387,176.06,176.0,154.86157875]
[1748382092766,3.91958387,176.05,176.0,154.86157875]
[1748382092983,3.91958387,176.06,176.0,154.86157875]
[1748382093505,3.91958387,176.05,176.0,154.86157875]
[1748382093666,3.91958387,176.05,176.0,390.56157875]
[1748382094272,3.91958387,176.05,176.01,26.0]
[1748382094473,3.91958387,176.06,176.01,26.0]
[1748382094796,3.91958387,176.06,176.02,26.26964886]
[1748382096195,3.91958387,176.06,176.02,1.5775]
[1748382096375,3.91958387,176.02,176.01,261.7]
[1748382096700,9.59972757,176.06,176.01,306.84]
[1748382096905,3.91958387,176.02,176.01,306.84]
[1748382097464,3.91958387,176.02,176.01,271.1]
[1748382097691,3.91958387,176.02,176.01,306.84]
[1748382100570,3.91958387,176.02,176.01,271.1]
[1748382100775,3.91958387,176.02,176.01,306.8]
[1748382102497,9.60075646,176.02,176.01,271.1]
[1748382102696,9.60075646,176.02,176.01,306.78]
[1748382102995,5.68117259,176.02,176.01,306.78]
[1748382103492,9.60075646,176.02,176.01,306.78]
[1748382103693,3.91958387,176.02,176.01,306.78]
[1748382104098,5.68084985,176.03,176.01,306.78]
[1748382104398,3.91958387,176.02,176.01,306.78]
[1748382104906,5.68084985,176.03,176.01,306.78]
[1748382105089,3.91958387,176.02,176.01,306.78]
[1748382105586,3.91958387,176.02,176.01,160.08]
[1748382105771,5.68084985,176.03,176.01,160.08]
[1748382106204,9.60075646,176.02,176.01,98.52]
[1748382106396,9.60075646,176.02,176.01,134.14]
[1748382108878,9.60075646,176.02,176.01,98.52]
[1748382109076,9.60075646,176.02,176.01,134.12]
[1748382110094,9.60075646,176.02,176.01,98.52]
[1748382113779,3.91958387,176.01,176.0,104.0]
[1748382115607,9.60107923,176.01,176.0,104.0]
[1748382116516,10.10107923,176.01,176.0,104.0]
[1748382117717,48.41288966,176.01,176.0,51.9003]
[1748382119315,29.7632408,176.01,176.0,51.9003]
[1748382119495,19.7632408,176.01,176.0,51.9003]
[1748382119815,29.7632408,176.01,176.0,51.9003]
[1748382121691,19.7632408,176.01,176.0,51.9003]
[1748382122293,91.2832408,176.01,176.0,51.9003]
[1748382122494,91.2632408,176.01,176.0,51.9003]
[1748382124305,81.2632408,176.01,176.0,51.9003]
[1748382125423,55.18107923,176.01,176.0,51.9003]
[1748382126216,19.62107923,176.01,176.0,51.9003]
[1748382128801,45.62107923,176.01,176.0,51.9003]
[1748382134121,36.10107923,176.01,176.0,51.9003]
[1748382136326,10.10107923,176.01,176.0,51.9003]
[1748382137312,45.8232408,176.01,176.0,51.9003]
[1748382137718,48.78355433,176.01,176.0,51.9003]
[1748382141145,54.17532127,176.01,176.0,51.9003]
[1748382141380,72.82497013,176.01,176.0,51.9003]
[1748382142214,54.0331597,176.01,176.0,51.9003]
[1748382142515,53.9931597,176.01,176.0,51.9003]
[1748382142727,51.03284617,176.01,176.0,51.9003]
[1748382142925,15.49284617,176.01,176.0,51.9003]
[1748382143112,10.10107923,176.01,176.0,51.9003]
[1748382154642,6.18149536,176.01,176.0,51.9003]
[1748382154826,10.10107923,176.01,176.0,87.3603]
[1748382166928,10.10107923,176.01,176.0,51.9003]
[1748382168338,10.10107923,176.01,176.0,52.9003]
[1748382176265,9.60107923,176.01,176.0,52.9003]
[1748382176980,5.68149536,176.01,176.0,60.6006]
[1748382178658,5.68117259,176.02,176.0,60.6006]
[1748382178859,9.60075646,176.02,176.0,60.6006]
[1748382179061,9.60075646,176.02,176.0,59.4006]
[1748382179870,5.68117259,176.02,176.0,59.4006]
[1748382180379,3.91958387,176.03,176.0,59.4006]
[1748382181056,10.02038772,176.04,176.0,59.4006]
[1748382181372,4.33958387,176.04,176.0,59.4006]
[1748382181565,14.19867278,176.08,176.02,1.525]
[1748382181566,3.91958387,176.08,176.02,1.525]